bitfinex/quotes_ETHUSD_20251019
["timestamp","ask_amount","ask_price","bid_price","bid_amount"]
[1760834827293,2.3616,3874.1,3873.6,1.30300435]
[1760834827294,6.68422446,3873.7,3873.6,1.30300435]
[1760834827499,23.03936646,3873.7,3873.6,1.30300435]
[1760834827707,14.41759546,3873.7,3873.6,1.30300435]
[1760834827905,12.77925787,3873.7,3873.6,1.30300435]
[1760834828517,18.74696587,3873.7,3873.6,1.30300435]
[1760834828831,17.83301487,3873.7,3873.6,1.30300435]
[1760834829402,6.83812446,3873.7,3873.6,1.30300435]
[1760834829602,17.78800946,3873.7,3873.6,1.30300435]
[1760834830364,18.19299563,3873.7,3873.6,1.30300435]
[1760834830715,22.88236763,3873.7,3873.6,1.30300435]
[1760834830911,19.01074863,3873.7,3873.6,1.30300435]
[1760834831113,2.13298617,3873.7,3873.6,1.30300435]
[1760834831308,2.92048617,3873.7,3873.6,1.30300435]
[1760834831858,2.13298617,3873.7,3873.6,1.30300435]
[1760834832347,2.17798789,3873.7,3873.6,1.30300435]
[1760834832528,2.17798789,3873.7,3873.6,1.73780435]
[1760834833220,2.17798789,3873.7,3873.6,1.30300435]
[1760834834654,1.77300172,3873.7,3873.6,1.30300435]
[1760834838060,2.96546204,3873.7,3873.6,1.30300435]
[1760834840256,2.92046032,3873.7,3873.6,1.30300435]
[1760834841528,2.96546664,3873.7,3873.6,1.30300435]
[1760834842337,16.11700064,3873.7,3873.6,1.30300435]
[1760834842566,11.11546164,3873.7,3873.6,1.30300435]
[1760834842770,13.69697285,3873.7,3873.6,1.30300435]
[1760834843341,27.72115285,3873.7,3873.6,1.30300435]
[1760834843965,21.25453364,3873.7,3873.6,1.30300435]
[1760834844164,23.83604485,3873.7,3873.6,1.30300435]
[1760834844486,28.72585785,3873.7,3873.6,1.30300435]
[1760834844842,26.14434664,3873.7,3873.6,1.25799562]
[1760834845177,20.47578332,3873.7,3873.6,1.25799562]
[1760834845405,14.33592832,3873.7,3873.6,1.25799562]
[1760834845578,14.45792832,3873.7,3873.6,1.25799562]
[1760834845940,2.13296032,3873.7,3873.6,1.69279562]
[1760834846143,1.77300705,3873.7,3873.6,1.69279562]
[1760834847094,1.77300705,3873.7,3873.6,1.25799562]
[1760834847242,2.40660705,3873.7,3873.6,1.25799562]
[1760834847445,2.56050705,3873.7,3873.6,1.25799562]
[1760834848446,2.40660705,3873.7,3873.6,1.25799562]
[1760834849171,2.81159641,3873.7,3873.6,1.25799562]
[1760834849775,13.01078241,3873.7,3873.6,1.25799562]
[1760834850071,17.70851241,3873.7,3873.6,1.25799562]
[1760834850376,13.65767441,3873.7,3873.6,1.25799562]
[1760834850979,14.28037541,3873.7,3873.6,1.25799562]
[1760834851884,2.81159641,3873.7,3873.6,1.25799562]
[1760834852050,16.97581862,3873.7,3873.6,1.25799562]
[1760834852258,14.39430741,3873.7,3873.6,1.25799562]
[1760834852588,16.97581862,3873.7,3873.6,1.25799562]
[1760834852770,17.12971862,3873.7,3873.6,1.25799562]
[1760834852964,35.54700762,3873.7,3873.6,1.25799562]
[1760834853366,35.14201826,3873.7,3873.6,1.25799562]
[1760834853561,35.09701121,3873.7,3873.6,1.25799562]
[1760834854054,5.09701121,3873.7,3873.6,1.25799562]
[1760834854256,29.22183721,3873.7,3873.6,1.25799562]
[1760834854957,5.09701121,3873.7,3873.6,1.25799562]
[1760834855289,29.21739721,3873.7,3873.6,1.25799562]
[1760834855862,29.26241036,3873.7,3873.6,1.25799562]
[1760834856101,28.02849236,3873.7,3873.6,1.25799562]
[1760834856460,28.43352058,3873.7,3873.6,1.25799562]
[1760834857070,5.54705258,3873.7,3873.6,1.25799562]
[1760834857266,28.59123858,3873.7,3873.6,1.25799562]
[1760834858098,5.50203943,3873.7,3873.6,1.25799562]
[1760834858308,21.45444043,3873.7,3873.6,1.25799562]
[1760834859271,27.96417643,3873.7,3873.6,1.25799562]
[1760834859893,2.3616,3873.6,3873.2,0.001]
[1760834860096,2.3616,3873.3,3873.2,0.001]
[1760834860487,12.108617,3873.3,3873.2,0.001]
[1760834860791,2.76664146,3873.3,3873.2,0.4639]
[1760834862891,0.40504146,3873.3,3873.2,0.4639]
[1760834863094,5.00123847,3873.4,3873.2,0.001]
[1760834863296,1.728,3873.3,3873.2,0.001]
[1760834864067,1.728,3873.3,3873.2,0.4639]
[1760834866084,1.728,3873.3,3873.2,0.001]
[1760834866289,2.13301827,3873.3,3873.2,0.001]
[1760834866826,2.76661827,3873.3,3873.2,0.001]
[1760834867179,2.3616,3873.3,3873.2,0.001]
[1760834870111,2.76664698,3873.3,3873.2,0.001]
[1760834870481,18.16290179,3873.3,3873.2,0.001]
[1760834871509,5.50232479,3873.3,3873.2,0.001]
[1760834871745,20.89355279,3873.3,3873.2,0.001]
[1760834872502,5.50232479,3873.3,3873.2,0.001]
[1760834872828,24.66504079,3873.3,3873.2,0.001]
[1760834872990,20.11600979,3873.3,3873.2,0.001]
[1760834873323,34.94344446,3873.2,3873.1,0.001]
[1760834873525,32.97758446,3873.2,3873.1,0.001]
[1760834873717,26.28069846,3873.2,3873.1,0.001]
[1760834874115,18.76766646,3873.2,3873.1,0.001]
[1760834874623,23.86513646,3872.9,3872.8,0.001]
[1760834874919,26.36146592,3872.9,3872.8,0.001]
[1760834875227,26.56288408,3872.9,3872.8,0.001]
[1760834875727,28.06942508,3872.9,3872.8,0.001]
[1760834875929,12.07170454,3872.3,3872.2,1.1949823]
[1760834876103,17.027929,3872.3,3872.2,1.1949823]
[1760834876310,17.184329,3872.3,3872.2,1.1949823]
[1760834876510,17.22935474,3872.3,3872.2,1.1949823]
[1760834876714,40.10169474,3872.3,3872.2,1.1449823]
[1760834876915,35.52699474,3872.3,3872.2,1.1449823]
[1760834877120,34.88365374,3872.3,3872.2,1.1449823]
[1760834877412,33.71019574,3872.3,3872.2,1.1449823]
[1760834877610,28.92802074,3872.3,3872.2,1.1449823]
[1760834877815,2.58276294,3871.9,3871.5,0.4629]
[1760834878021,2.3616,3871.5,3871.3,0.4629]
[1760834878214,1.728,3871.3,3871.1,0.88921593]
[1760834878937,1.728,3871.3,3871.2,0.4629]
[1760834879111,1.728,3871.7,3871.2,0.4629]
[1760834879307,4.95622446,3872.2,3871.2,0.59275159]
[1760834879609,0.6336,3872.0,3871.2,0.17985159]
[1760834880008,1.728,3872.1,3871.2,0.17985159]
[1760834880637,0.40513807,3871.9,3871.2,0.17985159]
[1760834881347,0.40513807,3871.9,3871.3,0.4629]
[1760834881533,0.40513807,3871.9,3871.4,0.15319675]
[1760834881742,0.40513807,3871.9,3871.5,0.4629]
[1760834881914,0.04502201,3871.8,3871.5,0.4629]
[1760834882440,0.04502201,3871.8,3871.6,0.02582911]
[1760834882616,0.04502201,3871.8,3871.7,0.4629]
[1760834882812,0.04502201,3871.8,3871.7,0.7377919]
[1760834883009,0.04502201,3871.8,3871.7,0.417883]
[1760834883244,0.04502201,3871.8,3871.4,0.15319675]
[1760834883551,0.04502201,3871.8,3871.4,2.73623854]
[1760834883715,0.04502201,3871.8,3871.4,2.73622784]
[1760834883914,0.04502201,3871.8,3871.7,2.58284474]
[1760834884137,0.04502201,3871.8,3871.7,3.114752]
[1760834885013,0.04502201,3871.8,3871.7,3.573252]
[1760834885414,0.04502201,3871.8,3871.7,0.99040726]
[1760834885645,0.04502201,3871.8,3871.7,3.04134474]
[1760834887944,0.04502201,3871.8,3871.7,0.4585]
[1760834888150,0.04502201,3871.8,3871.7,3.04134474]
[1760834889749,0.04502201,3871.8,3871.7,3.06717318]
[1760834889949,0.04502201,3871.8,3871.7,3.04134474]
[1760834890151,0.04502201,3871.8,3871.7,3.67248144]
[1760834890522,0.04702201,3871.8,3871.7,3.67248144]
[1760834893563,0.002,3871.8,3871.7,3.69830988]
[1760834893927,0.002,3871.8,3871.7,3.67248144]
[1760834900451,0.002,3871.8,3871.7,3.68628144]
[1760834902473,0.002,3871.8,3871.7,3.21398144]
[1760834902671,0.002,3871.8,3871.7,0.6311367]
[1760834902876,0.2523,3871.8,3871.6,0.001]
[1760834903074,0.29731823,3871.8,3871.6,0.001]
[1760834903761,0.04701823,3871.8,3871.6,0.001]
[1760834905545,0.2546,3871.7,3871.6,0.001]
[1760834908164,0.002,3871.8,3871.6,0.001]
[1760834908365,0.002,3871.8,3871.7,0.4723]
[1760834908775,0.1288,3871.7,3871.6,0.02682911]
[1760834908981,0.1288,3871.7,3871.6,3.39035261]
[1760834909308,0.002,3871.8,3871.6,3.36451199]
[1760834909669,0.002,3871.8,3871.6,0.78161205]
[1760834909864,0.002,3871.8,3871.6,0.001]
[1760834910469,0.002,3871.8,3871.6,0.4733]
[1760834910669,0.002,3871.8,3871.6,2.58390236]
[1760834911314,0.002,3871.8,3871.6,0.4733]
[1760834911668,0.04701911,3871.8,3871.6,0.4733]
[1760834912016,0.04701911,3871.8,3871.7,2.58284474]
[1760834912317,0.04701911,3871.8,3871.6,3.05620226]
[1760834912671,0.04701911,3871.8,3871.6,0.001]
[1760834912867,0.04701911,3871.8,3871.6,2.58390545]
[1760834913445,0.04701911,3871.8,3871.6,0.001]
[1760834914145,0.04701911,3871.8,3871.6,2.58390449]
[1760834914434,0.04701911,3871.8,3871.7,3.05514474]
[1760834915037,0.04701911,3871.8,3871.7,0.4723]
[1760834915936,0.04701911,3871.8,3871.7,3.05514474]
[1760834916122,0.04701911,3871.8,3871.7,2.58284474]
[1760834916435,0.04701911,3871.8,3871.6,3.16081328]
[1760834916737,0.04701911,3871.8,3871.6,3.62321328]
[1760834917030,0.04701911,3871.8,3871.7,2.58284474]
[1760834917223,0.04701911,3871.8,3871.6,3.62320131]
[1760834919153,0.2546,3871.7,3871.6,0.001]
[1760834919443,0.3834,3871.7,3871.6,0.001]
[1760834920307,0.2546,3871.7,3871.6,0.001]
[1760834923552,0.29962338,3871.7,3871.6,0.001]
[1760834925454,0.04502338,3871.7,3871.6,0.001]
[1760834926262,0.29962338,3871.7,3871.6,0.001]
[1760834927711,0.70479474,3871.7,3871.6,0.001]
[1760834928657,0.65977136,3871.7,3871.6,0.001]
[1760834931545,0.70479671,3871.7,3871.6,0.001]
[1760834932167,0.45019671,3871.7,3871.6,0.001]
[1760834933063,0.04502535,3871.7,3871.6,0.4634]
[1760834933750,0.04502535,3871.7,3871.6,0.001]
[1760834933951,0.29962535,3871.7,3871.6,0.001]
[1760834934158,0.04502535,3871.7,3871.6,0.001]
[1760834936447,0.29962535,3871.7,3871.6,0.001]
[1760834939550,0.04502535,3871.7,3871.6,0.001]
[1760834940083,0.04502535,3871.7,3871.6,0.4634]
[1760834941872,0.002,3871.8,3871.6,0.86276971]
[1760834942186,0.1308,3871.8,3871.6,0.86276971]
[1760834942387,0.1308,3871.8,3871.7,0.4624]
[1760834943011,0.1308,3871.8,3871.6,0.051]
[1760834944387,0.17582092,3871.8,3871.6,0.5134]
[1760834944549,0.17582092,3871.8,3871.6,0.051]
[1760834948083,0.43042092,3871.8,3871.6,0.051]
[1760834948392,0.17582092,3871.8,3871.6,0.051]
[1760834949872,0.17582092,3871.8,3871.6,0.5206]
[1760834950050,0.17582092,3871.8,3871.6,0.051]
[1760834952186,0.43042092,3871.8,3871.6,0.051]
[1760834952365,0.17582092,3871.8,3871.6,0.051]
[1760834954406,0.17582092,3871.8,3871.6,0.5206]
[1760834955200,0.17582092,3871.8,3871.6,0.051]
[1760834955402,0.04702092,3871.8,3871.7,0.4696]
[1760834955614,0.04702092,3871.8,3871.7,1.44335831]
[1760834955896,0.002,3871.8,3871.7,4.05203149]
[1760834956102,0.002,3871.8,3871.7,1.44335831]
[1760834956308,0.002,3871.8,3871.7,0.87470657]
[1760834957180,0.002,3871.8,3871.7,0.40510657]
[1760834957588,0.002,3871.8,3871.7,3.45755131]
[1760834958571,0.002,3871.8,3871.7,3.53337975]
[1760834959283,0.002,3871.8,3871.7,3.50755131]
[1760834959481,0.002,3871.8,3871.7,4.11670406]
[1760834965276,0.002,3871.8,3871.7,4.24550406]
[1760834970320,0.002,3871.8,3871.7,3.77590406]
[1760834970621,0.002,3871.8,3871.7,4.24550406]
[1760834971828,0.002,3871.8,3871.7,4.2713325]
[1760834972126,0.002,3871.8,3871.7,1.19305932]
[1760834972330,0.2578,3871.8,3871.7,0.45510657]
[1760834974212,0.2578,3871.8,3871.7,3.03795131]
[1760834974419,0.002,3871.8,3871.7,3.03795131]
[1760834974913,0.002,3871.8,3871.7,0.45510657]
[1760834975315,0.2578,3871.8,3871.7,0.45510657]
[1760834983935,0.002,3871.8,3871.7,0.45510657]
[1760834984111,0.002,3871.8,3871.7,3.03795131]
[1760834984316,0.002,3871.8,3871.7,3.48605131]
[1760834985334,0.002,3871.8,3871.7,3.83475644]
[1760834986115,0.002,3871.8,3871.7,3.38665644]
[1760834986315,0.002,3871.8,3871.7,3.86058488]
[1760834986711,0.002,3871.8,3871.7,3.83475644]
[1760834996224,0.002,3871.8,3871.7,3.38665644]
[1760834996457,0.002,3871.8,3871.7,3.83475644]
[1760835001346,0.002,3871.8,3871.7,0.8038117]
[1760835001347,0.2578,3871.8,3871.7,0.8038117]
[1760835001547,0.2578,3871.8,3871.7,0.45510657]
[1760835002142,0.2578,3871.8,3871.7,3.03795131]
[1760835002344,0.2578,3871.8,3871.7,0.45510657]
[1760835003736,0.002,3871.8,3871.7,3.03795131]
[1760835004457,0.002,3871.8,3871.7,3.49605131]
[1760835004660,0.002,3871.8,3871.7,4.4910511]
[1760835006367,0.002,3871.8,3871.7,4.6198511]
[1760835007861,0.002,3871.8,3871.7,9.143804]
[1760835008047,0.002,3871.8,3871.7,9.54847556]
[1760835008447,0.002,3871.8,3871.7,28.8690366]
[1760835008646,0.002,3871.8,3871.7,25.60409086]
[1760835008852,0.002,3871.8,3871.7,21.02197386]
[1760835009167,0.002,3871.8,3871.7,20.23022786]
[1760835009545,0.002,3871.8,3871.7,19.8649406]
[1760835009736,0.002,3871.8,3871.7,17.24907556]
[1760835009935,0.002,3871.8,3871.7,14.63207556]
[1760835010151,0.002,3871.8,3871.7,17.24907556]
[1760835010344,0.002,3871.8,3871.7,14.63207556]
[1760835010670,0.002,3871.8,3871.7,17.24907556]
[1760835010967,0.002,3871.8,3871.7,27.97053356]
[1760835011172,0.002,3871.8,3871.7,26.21852356]
[1760835011345,0.002,3871.8,3871.7,23.60152356]
[1760835011550,0.002,3871.8,3871.7,26.21852356]
[1760835012074,0.002,3871.8,3871.7,23.60152356]
[1760835012272,0.002,3871.8,3871.7,26.21852356]
[1760835012579,0.002,3871.8,3871.7,19.83740156]
[1760835013682,0.002,3871.8,3871.7,17.22040156]
[1760835014038,0.002,3871.8,3871.7,19.83740156]
[1760835017372,0.002,3871.8,3871.7,17.22040156]
[1760835017774,0.002,3871.8,3871.7,19.83740156]
[1760835018094,0.002,3871.8,3871.7,17.22040156]
[1760835018316,0.002,3871.8,3871.7,19.83740156]
[1760835019071,0.002,3871.8,3871.7,17.22040156]
[1760835019292,0.002,3871.8,3871.7,19.83640156]
[1760835023584,0.002,3871.8,3871.7,23.70640156]
[1760835026207,0.002,3871.8,3871.7,21.09040156]
[1760835026411,0.002,3871.8,3871.7,23.70640156]
[1760835027108,1e-08,3872.2,3872.1,12.62240238]
[1760835027284,1e-08,3872.2,3872.1,16.88854262]
[1760835027492,1e-08,3872.2,3872.1,17.01734262]
[1760835027798,1e-08,3872.2,3872.1,17.67954262]
[1760835029709,0.002,3872.6,3872.5,5.93791116]
[1760835029904,0.002,3872.6,3872.5,17.43013561]
[1760835030081,0.002,3872.6,3872.5,16.83818869]
[1760835030283,0.002,3872.6,3872.5,19.80688869]
[1760835030797,0.002,3872.6,3872.5,19.93877905]
[1760835031626,0.002,3872.6,3872.5,19.80688869]
[1760835031985,0.002,3872.6,3872.5,17.08488869]
[1760835032805,0.2487,3872.6,3872.5,19.80688869]
[1760835033182,0.002,3872.6,3872.5,19.80688869]
[1760835034691,0.2,3874.0,3872.5,19.80688869]
[1760835034692,0.433,3876.5,3873.8,0.6336]
[1760835034893,0.433,3876.5,3874.1,4.53964467]
[1760835034894,0.1221,3875.1,3874.1,4.53964467]
[1760835035416,0.1221,3875.1,3874.1,8.89427942]
[1760835035417,0.002,3874.9,3874.1,8.89427942]
[1760835035613,0.002,3874.9,3874.1,8.86846698]
[1760835035828,0.002,3874.9,3874.1,10.77057392]
[1760835036383,0.2134,3874.9,3874.1,10.77057392]
[1760835037810,0.2134,3874.9,3874.1,8.04857392]
[1760835038411,0.2134,3874.9,3874.4,1.728]
[1760835038623,0.2134,3874.9,3874.4,9.29922446]
[1760835039122,0.2134,3874.9,3874.4,9.51262446]
[1760835039416,0.2134,3874.9,3874.4,11.28514764]
[1760835039816,0.002,3874.9,3874.4,13.86619244]
[1760835040014,0.101,3874.5,3874.4,8.90996798]
[1760835040897,0.002,3874.5,3874.4,8.90996798]
[1760835041104,0.002,3874.5,3874.4,6.29496798]
[1760835041313,0.002,3874.5,3874.4,8.90996798]
[1760835041724,0.002,3874.5,3874.4,6.29496798]
[1760835042032,0.002,3874.5,3874.4,8.90996798]
[1760835044651,0.002,3874.5,3874.4,9.03876798]
[1760835047242,0.002,3874.5,3874.4,9.67236798]
[1760835047537,0.002,3874.9,3874.5,9.30120265]
[1760835047735,0.2134,3874.9,3874.5,13.68472971]
[1760835047941,0.099,3874.8,3874.5,13.68472971]
[1760835048109,0.099,3874.8,3874.5,13.89812971]
[1760835050942,0.2134,3874.9,3874.5,13.89812971]
[1760835052653,0.2134,3874.9,3874.5,11.28412971]
[1760835052816,0.2134,3874.9,3874.5,13.89812971]
[1760835053349,0.2134,3874.9,3874.7,2.58084496]
[1760835053518,0.2134,3874.9,3874.8,4.21857801]
[1760835053718,0.2134,3874.9,3874.8,4.34737801]
[1760835053920,0.2134,3874.9,3874.8,4.56847801]
[1760835054351,0.3124,3874.9,3874.8,4.56847801]
[1760835054549,0.2134,3874.9,3874.8,4.56847801]
[1760835055835,0.002,3874.9,3874.8,8.438478]
[1760835056052,0.002,3874.9,3874.8,10.616178]
[1760835056462,0.002,3874.9,3874.8,13.230178]
[1760835057536,1e-08,3875.0,3874.9,4.30871176]
[1760835057734,1e-08,3875.0,3874.9,5.84483074]
[1760835058156,1e-08,3875.0,3874.9,5.94828949]
[1760835058467,1e-08,3875.0,3874.9,6.39798949]
[1760835059268,0.002,3875.4,3875.2,2.58051197]
[1760835059767,0.002,3875.4,3875.2,2.70931197]
[1760835059968,0.002,3875.4,3875.2,4.05857344]
[1760835060831,0.101,3875.3,3875.2,4.05857344]
[1760835061284,0.002,3875.3,3875.2,4.05857344]
[1760835065159,0.002,3875.4,3875.3,2.61244537]
[1760835065676,0.101,3875.4,3875.3,2.61244537]
[1760835068866,5.05722446,3875.4,3875.3,0.03199999]
[1760835069071,6.78522446,3875.4,3875.3,0.03199999]
[1760835069279,1.87397756,3875.4,3875.3,0.03199999]
[1760835069580,0.14597756,3875.4,3875.3,0.03199999]
[1760835080008,0.14597756,3875.4,3875.3,0.03299999]
[1760835084715,0.04697756,3875.4,3875.3,0.03299999]
[1760835085996,0.04697756,3875.4,3875.3,0.49029999]
[1760835086504,0.04697756,3875.4,3875.3,0.36627329]
[1760835086705,0.04697756,3875.4,3875.3,0.82357329]
[1760835087106,0.002,3875.4,3875.3,0.82357329]
[1760835087304,0.002,3875.4,3875.3,3.40401867]
[1760835087513,0.002,3875.4,3875.3,3.07074537]
[1760835090729,0.002,3875.4,3875.3,3.09654982]
[1760835091823,0.1288,3875.6,3875.4,2.610337]
[1760835092021,0.1288,3875.6,3875.5,2.63611532]
[1760835092327,0.002,3875.7,3875.6,2.58024563]
[1760835092527,0.002,3875.7,3875.6,3.03754563]
[1760835093401,0.002,3875.7,3875.6,0.4573]
[1760835094129,0.002,3875.7,3875.5,0.59747522]
[1760835094319,0.002,3875.7,3875.5,3.17776775]
[1760835094526,0.002,3875.7,3875.6,0.37648678]
[1760835095705,0.002,3875.7,3875.6,2.95673241]
[1760835097700,0.002,3875.7,3875.6,3.42443241]
[1760835100538,0.002,3875.8,3875.7,0.02799999]
[1760835101079,0.002,3875.8,3875.7,0.49569999]
[1760835102178,0.002,3875.8,3875.7,3.07587905]
[1760835103180,0.002,3875.8,3875.7,3.74877888]
[1760835103882,0.002,3875.8,3875.7,3.77458067]
[1760835104839,0.002,3875.8,3875.7,3.74877888]
[1760835105085,0.002,3875.8,3875.7,3.28107888]
[1760835106545,0.1288,3876.0,3875.8,0.01599999]
[1760835106878,0.2278,3876.0,3875.8,0.01599999]
[1760835107078,0.04696968,3876.2,3875.8,0.01599999]
[1760835107079,0.2685,3875.9,3875.8,0.01599999]
[1760835108153,0.67324773,3875.9,3875.8,0.01599999]
[1760835114782,0.40474773,3875.9,3875.8,0.01599999]
[1760835115292,0.40474773,3875.9,3875.8,0.48369999]
[1760835117393,0.40474773,3875.9,3875.8,0.01599999]
[1760835117593,0.40474773,3875.9,3875.8,0.48369999]
[1760835118192,0.40474773,3875.9,3875.8,3.06381248]
[1760835118400,0.38874774,3875.9,3875.8,3.35677798]
[1760835120500,0.38874774,3875.9,3875.8,0.30896549]
[1760835120696,0.38874774,3875.9,3875.6,0.4677]
[1760835120883,0.38874774,3875.9,3875.7,0.4677]
[1760835121090,0.38874774,3875.9,3875.7,2.58011387]
[1760835121287,0.38874774,3875.9,3875.4,0.4687]
[1760835121490,0.38874774,3875.9,3875.5,0.4677]
[1760835121691,0.38874774,3875.9,3875.7,2.58016647]
[1760835121889,0.38874774,3875.9,3875.8,0.4677]
[1760835122895,0.38874774,3875.9,3875.8,3.04781249]
[1760835123888,0.38874774,3875.9,3875.6,1.15800552]
[1760835124092,0.38874774,3875.9,3875.7,2.58017841]
[1760835124269,0.36874774,3875.9,3875.6,0.40474773]
[1760835124866,0.36874774,3875.9,3875.4,0.4622]
[1760835125093,0.36874774,3875.9,3875.5,0.40474773]
[1760835125292,0.1017,3876.1,3875.5,0.40474773]
[1760835125983,0.1017,3876.1,3875.5,2.9850136]
[1760835126178,0.1017,3876.1,3875.5,0.40474773]
[1760835126500,0.002,3876.1,3875.6,2.58018141]
[1760835126894,0.002,3876.1,3875.7,0.4612]
[1760835127208,0.002,3876.1,3875.8,2.58011249]
[1760835127372,0.002,3876.1,3875.8,3.05161249]
[1760835127703,0.002,3876.1,3875.9,0.4715]
[1760835128204,0.002,3876.1,3875.8,2.58011249]
[1760835128507,0.002,3876.1,3876.0,0.4715]
[1760835131273,0.002,3876.1,3876.0,3.05147936]
[1760835131474,0.002,3876.1,3876.0,3.6172162]
[1760835132180,0.002,3876.1,3876.0,3.7460162]
[1760835134202,0.002,3876.1,3876.0,3.77181599]
[1760835134722,0.002,3876.1,3876.0,3.7460162]
[1760835134924,0.002,3876.1,3876.0,3.84945943]
[1760835135819,0.002,3876.1,3876.0,3.87525922]
[1760835138014,0.002,3876.1,3876.0,10.32945942]
[1760835139401,0.002,3876.1,3876.0,11.54205943]
[1760835145018,0.002,3876.1,3876.0,15.41205942]
[1760835148853,0.002,3876.1,3876.0,12.05645942]
[1760835153426,0.002,3876.1,3876.0,8.97595942]
[1760835153656,0.002,3876.1,3876.0,7.24795942]
[1760835159367,0.101,3876.1,3875.9,0.001]
[1760835167174,0.002,3876.1,3875.9,0.001]
[1760835167477,0.099,3876.0,3875.9,0.001]
[1760835168766,0.14397354,3876.0,3875.9,0.001]
[1760835171684,0.099,3876.0,3875.9,0.001]
[1760835174773,0.14397433,3876.0,3875.9,0.001]
[1760835178070,0.54869505,3876.0,3875.9,0.001]
[1760835178472,0.50372072,3876.0,3875.9,0.001]
[1760835179573,7.18794518,3876.0,3875.9,0.001]
[1760835181884,7.23291957,3876.0,3875.9,0.001]
[1760835183883,6.82819885,3876.0,3875.9,0.001]
[1760835186323,7.46179885,3876.0,3875.9,0.001]
[1760835186682,7.46379885,3876.0,3875.9,0.001]
[1760835187127,7.86855681,3876.0,3875.9,0.001]
[1760835187289,7.99521567,3876.0,3875.9,0.001]
[1760835187819,7.95024128,3876.0,3875.9,0.001]
[1760835188017,14.54486532,3876.0,3875.9,0.001]
[1760835188317,19.59957232,3876.0,3875.9,0.001]
[1760835188618,22.17955168,3876.0,3875.9,0.001]
[1760835189319,25.94345468,3876.0,3875.9,0.001]
[1760835189721,20.49978432,3876.0,3875.9,0.001]
[1760835189901,17.03764368,3876.0,3875.9,0.001]
[1760835190301,19.39770992,3875.9,3875.8,0.001]
[1760835190487,19.69530992,3875.9,3875.8,0.001]
[1760835190694,19.79500992,3875.9,3875.8,0.001]
[1760835190935,18.59201492,3875.9,3875.8,0.001]
[1760835191119,18.63699716,3875.9,3875.8,0.001]
[1760835191328,19.29668492,3875.9,3875.8,0.001]
[1760835191906,19.70149577,3875.9,3875.8,0.001]
[1760835192309,20.75620177,3875.9,3875.8,0.001]
[1760835193109,20.39749577,3875.9,3875.8,0.001]
[1760835193441,20.40520177,3875.9,3875.8,0.001]
[1760835194408,20.69066777,3875.9,3875.8,0.001]
[1760835195411,18.71128777,3875.9,3875.8,0.001]
[1760835196336,20.92473777,3875.9,3875.8,0.001]
[1760835197317,5.74375677,3875.9,3875.8,0.001]
[1760835197535,20.51550177,3875.9,3875.8,0.001]
[1760835198430,24.61668877,3875.9,3875.8,0.001]
[1760835199556,19.77782377,3875.9,3875.8,0.001]
[1760835200461,22.13996477,3875.9,3875.8,0.001]
[1760835200662,21.41996477,3875.9,3875.8,0.001]
[1760835200863,21.46494735,3875.9,3875.8,0.001]
[1760835201065,19.79694735,3875.9,3875.8,0.001]
[1760835201563,20.65714235,3875.9,3875.8,0.001]
[1760835202566,5.78873935,3875.9,3875.8,0.001]
[1760835202769,22.32714235,3875.9,3875.8,0.001]
[1760835202934,21.09580635,3875.9,3875.8,0.001]
[1760835203767,23.55296535,3875.9,3875.8,0.001]
[1760835203956,23.10317192,3875.9,3875.8,0.001]
[1760835204359,18.65966163,3875.6,3875.5,0.001]
[1760835204664,29.83451809,3875.6,3875.5,0.001]
[1760835205072,23.89816009,3875.6,3875.5,0.001]
[1760835205735,25.40217209,3875.6,3875.5,0.001]
[1760835205939,22.50275709,3875.6,3875.5,0.001]
[1760835206137,22.25369109,3875.6,3875.5,0.001]
[1760835206337,21.45627909,3875.6,3875.5,0.001]
[1760835206580,21.50126179,3875.6,3875.5,0.001]
[1760835206768,23.15331079,3875.6,3875.5,0.001]
[1760835207483,22.32860479,3875.6,3875.5,0.001]
[1760835207677,21.90477379,3875.6,3875.5,0.001]
[1760835209065,17.03938079,3875.6,3875.5,0.001]
[1760835209573,16.49223909,3875.6,3875.5,0.001]
[1760835210048,9.89807009,3875.6,3875.5,0.001]
[1760835210253,16.49223909,3875.6,3875.5,0.001]
[1760835210448,15.03637309,3875.6,3875.5,0.001]
[1760835211278,21.16747109,3875.6,3875.5,0.001]
[1760835211776,35.07071221,3875.5,3875.4,0.001]
[1760835211979,34.81717721,3875.5,3875.4,0.001]
[1760835212161,4.94197879,3875.4,3875.3,0.001]
[1760835212347,31.47899279,3875.4,3875.3,0.001]
[1760835212546,29.42181179,3875.4,3875.3,0.001]
[1760835213270,29.30181179,3875.4,3875.3,0.001]
[1760835213774,29.3467979,3875.4,3875.3,0.001]
[1760835215192,28.4160919,3875.4,3875.3,0.001]
[1760835215554,26.1072289,3875.4,3875.3,0.001]
[1760835215780,25.8488169,3875.4,3875.3,0.001]
[1760835215979,18.7928479,3875.4,3875.3,0.001]
[1760835216194,18.6931479,3875.4,3875.3,0.001]
[1760835216694,9.4377709,3875.4,3875.3,0.001]
[1760835217287,9.84260967,3875.4,3875.3,0.001]
[1760835217460,9.83479367,3875.4,3875.3,0.001]
[1760835218492,12.31874367,3875.4,3875.3,0.001]
[1760835218668,11.75044256,3875.4,3875.3,0.001]
[1760835219261,10.34975056,3875.4,3875.3,0.001]
[1760835219463,12.09175056,3875.4,3875.3,0.001]
[1760835219662,11.75044256,3875.4,3875.3,0.001]
[1760835220562,12.02312856,3875.4,3875.3,0.001]
[1760835221510,11.89212856,3875.4,3875.3,0.001]
[1760835221710,11.89212856,3875.4,3875.3,0.4571]
[1760835221711,1.04043877,3875.4,3875.3,0.4571]
[1760835221911,0.002,3875.8,3875.3,0.4571]
[1760835222116,2.57847046,3878.3,3875.5,4.95622446]
[1760835222313,2.74746583,3879.1,3876.2,0.1288]
[1760835222314,0.1288,3876.8,3876.2,0.1288]
[1760835222482,1.728,3877.5,3876.7,0.2358]